bitfinex-derivatives/quotes_ETHF0:USTF0_20240922
["timestamp","ask_amount","ask_price","bid_price","bid_amount"]
[1726972280253,0.7545,2598.9,2598.6,0.38476]
[1726972280456,0.7545,2598.9,2598.7,2.1919]
[1726972280649,3.2078,2599.0,2598.7,3.19881512]
[1726972280846,3.2078,2599.0,2598.7,2.19355512]
[1726972282548,3.2078,2599.0,2598.7,1.80881512]
[1726972282744,3.5777,2599.0,2598.7,1.18664]
[1726972283849,1.39,2598.9,2598.4,3.26906781]
[1726972284052,3.9624,2599.0,2598.6,0.38475]
[1726972284254,3.9624,2599.0,2598.5,1.39]
[1726972284546,0.38472,2598.9,2598.6,0.38476]
[1726972286752,0.38472,2598.9,2598.5,0.38477]
[1726972287149,3.9624,2599.0,2598.6,0.38475]
[1726972287551,3.5777,2599.0,2598.7,0.38474]
[1726972287954,3.5777,2599.0,2598.8,0.4025]
[1726972290846,3.2078,2599.0,2598.8,0.78723]
[1726972291260,0.7518,2599.1,2598.9,0.75402]
[1726972291557,0.7518,2599.1,2598.9,0.3693]
[1726972291747,0.7518,2599.1,2598.9,0.75401]
[1726972291951,0.7518,2599.1,2598.9,0.3693]
[1726972297161,0.7518,2599.1,2598.9,0.75401]
[1726972297959,0.7518,2599.1,2598.9,0.75402]
[1726972298265,0.7518,2599.1,2598.9,0.3693]
[1726972298866,0.7518,2599.1,2598.9,0.75401]
[1726972299954,0.7518,2599.1,2598.9,0.3693]
[1726972300562,0.3811,2599.1,2598.9,0.75401]
[1726972300866,0.3811,2599.1,2599.0,1.7747]
[1726972303557,3.2078,2599.4,2599.0,12.24411512]
[1726972303762,3.4758,2600.0,2599.9,0.38457]
[1726972303960,3.2078,2600.0,2599.9,1.77457]
[1726972304161,0.3712,2600.1,2600.0,0.38455]
[1726972304467,0.75574,2600.1,2599.8,1.39]
[1726972304658,0.75574,2600.1,2599.7,0.3846]
[1726972304969,0.75574,2600.1,2599.8,0.38458]
[1726972304970,0.3712,2600.1,2599.8,0.38458]
[1726972305164,0.75574,2600.1,2599.8,0.38458]
[1726972305370,0.3712,2600.1,2599.8,0.38458]
[1726972306666,0.3712,2600.1,2599.6,3.2078]
[1726972306870,0.3712,2600.1,2599.7,1.39]
[1726972307168,0.3712,2600.1,2599.9,0.38456]
[1726972307374,0.3712,2600.1,2600.0,0.76095]
[1726972309471,0.3712,2600.1,2600.0,2.15095]
[1726972309877,0.3712,2600.1,2600.0,0.76095]
[1726972310070,3.59228,2600.5,2600.1,0.38454]
[1726972310268,0.3642,2600.4,2600.1,0.3874]
[1726972310465,0.74869,2600.4,2600.1,0.3874]
[1726972311063,0.38451,2600.3,2600.0,0.3764]
[1726972311262,3.2078,2600.2,2599.8,0.38457]
[1726972311470,0.7996,2600.1,2600.0,0.38455]
[1726972311676,1.1638,2600.4,2600.0,0.38455]
[1726972312572,1.54829,2600.4,2600.0,0.38455]
[1726972312776,1.54829,2600.4,2600.0,0.76275]
[1726972314678,1.1638,2600.4,2600.0,0.76275]
[1726972315381,3.2078,2600.9,2600.3,3.0]
[1726972315572,4.3337,2601.3,2600.7,3.38444]
[1726972315772,4.3337,2601.3,2600.8,0.38443]
[1726972315973,4.71807,2601.3,2600.8,0.38443]
[1726972316174,4.71807,2601.3,2600.9,0.38442]
[1726972316385,0.38439,2601.2,2600.7,3.38444]
[1726972316573,4.71807,2601.3,2600.9,0.38442]
[1726972316773,1.1259,2601.3,2601.0,0.4014]
[1726972317086,1.1259,2601.3,2601.0,0.7858]
[1726972317265,1.1259,2601.3,2601.1,0.38438]
[1726972317471,1.1259,2601.3,2601.0,0.78579]
[1726972317879,4.3337,2601.3,2601.0,2.9444]
[1726972318080,3.5753,2601.3,2601.0,2.9444]
[1726972318284,3.5753,2601.3,2601.0,0.4014]
[1726972318779,0.3675,2601.3,2601.0,0.4014]
[1726972319075,3.2078,2601.6,2601.2,3.0]
[1726972319288,4.123,2602.7,2601.1,3.8448]
[1726972319289,3.2078,2602.1,2601.4,3.0]
[1726972319471,0.96037,2602.8,2602.0,0.38425]
[1726972319472,3.2078,2602.2,2602.0,0.38425]
[1726972319673,0.3939,2602.6,2602.0,0.38425]
[1726972319674,3.2078,2602.3,2602.0,2.543]
[1726972319981,3.6017,2602.6,2602.0,2.543]
[1726972320272,0.38419,2602.5,2602.0,2.543]
[1726972320872,3.6017,2602.6,2602.2,3.0]
[1726972321081,3.6017,2602.6,2601.9,3.59206]
[1726972321082,0.3842,2602.5,2601.9,3.59206]
[1726972321377,0.38422,2602.3,2601.9,3.2078]
[1726972321580,3.2078,2602.3,2601.9,2.92726]
[1726972321775,3.2078,2602.3,2601.6,3.0]
[1726972321776,3.2078,2602.3,2601.7,0.3843]
[1726972321973,0.38423,2602.2,2601.7,0.3839]
[1726972322169,3.2078,2602.3,2601.7,0.3839]
[1726972322676,3.2078,2602.3,2601.8,0.38429]
[1726972322872,3.2078,2602.3,2601.7,3.5917]
[1726972323073,3.59207,2602.0,2601.4,0.38434]
[1726972323374,3.59206,2602.0,2601.4,0.38434]
[1726972323572,3.59206,2602.0,2601.4,2.92634]
[1726972323787,0.38427,2601.9,2601.4,2.92634]
[1726972324087,0.38427,2601.9,2601.4,2.542]
[1726972325278,3.2078,2601.7,2601.3,0.3682]
[1726972325471,3.5921,2601.7,2601.3,0.3682]
[1726972326375,3.2078,2601.7,2601.3,0.3682]
[1726972326571,3.2078,2602.1,2601.5,3.0]
[1726972326776,3.2078,2602.1,2601.7,3.0]
[1726972327280,3.2078,2602.1,2601.7,3.3843]
[1726972327482,3.2078,2602.1,2601.7,3.0]
[1726972327677,3.2078,2602.1,2601.4,2.542]
[1726972327877,3.2078,2601.8,2601.4,2.542]
[1726972328077,0.786,2601.7,2601.4,2.542]
[1726972328377,0.786,2601.7,2601.3,0.3682]
[1726972328582,3.59214,2601.5,2601.2,2.542]
[1726972328782,3.59214,2601.5,2601.0,4.102]
[1726972328976,3.59214,2601.5,2601.0,6.644]
[1726972329378,3.59214,2601.5,2601.0,7.0284]
[1726972329578,3.2078,2601.5,2601.0,7.0284]
[1726972330373,3.59214,2601.5,2601.0,7.0284]
[1726972330577,0.38436,2601.4,2601.0,6.644]
[1726972330779,3.2078,2601.5,2601.0,2.542]
[1726972330780,3.59214,2601.5,2601.0,2.542]
[1726972331684,3.59214,2601.5,2601.0,2.9264]
[1726972331876,3.2078,2601.2,2600.8,0.3865]
[1726972332085,0.3626,2601.6,2600.8,3.3865]
[1726972332277,3.2078,2601.4,2600.8,3.3865]
[1726972332501,3.5922,2601.1,2600.7,5.7498]
[1726972332785,0.386,2601.0,2600.6,5.92646]
[1726972333282,0.386,2601.0,2600.5,6.644]
[1726972333483,0.3666,2600.9,2600.5,4.102]
[1726972333678,0.3666,2600.9,2600.5,4.48648]
[1726972334890,0.75102,2600.9,2600.5,4.48648]
[1726972335083,0.3666,2600.9,2600.6,3.38446]
[1726972336386,0.3666,2600.9,2600.6,3.0]
[1726972336585,0.3666,2600.9,2600.6,3.38446]
[1726972338279,0.3666,2600.9,2600.6,3.0]
[1726972340489,0.3666,2600.9,2600.6,3.38446]
[1726972341889,0.3666,2600.9,2600.6,3.0]
[1726972342486,0.3666,2600.9,2600.6,3.38446]
[1726972342999,0.38444,2600.8,2600.4,3.75919]
[1726972344293,0.38445,2600.7,2600.4,3.3747]
[1726972344596,3.59225,2600.7,2600.4,3.3747]
[1726972344792,3.2078,2600.7,2600.4,3.3747]
[1726972344997,3.59226,2600.7,2600.4,3.3747]
[1726972345491,3.59226,2600.7,2600.4,0.3747]
[1726972346491,3.2078,2600.7,2600.0,5.953]
[1726972346692,3.5923,2600.4,2600.0,6.73674]
[1726972346996,0.7435,2600.3,2600.0,3.8002]
[1726972347194,1.12802,2600.3,2600.0,3.8002]
[1726972347388,1.12802,2600.3,2600.0,3.3992]
[1726972347586,0.7435,2600.3,2600.0,3.78375]
[1726972347786,1.12801,2600.3,2600.0,3.78375]
[1726972349485,0.7435,2600.3,2600.0,3.3992]
[1726972349691,1.12802,2600.3,2600.0,3.3992]
[1726972349889,0.38453,2600.2,2600.0,3.3992]
[1726972350086,0.38453,2600.2,2600.0,0.3992]
[1726972350900,1.1384,2600.3,2599.8,3.0]
[1726972351089,3.59235,2600.1,2599.8,3.0]
[1726972351597,0.38456,2600.0,2599.8,3.0]
[1726972351899,0.38455,2600.0,2599.8,3.0]
[1726972352208,3.59235,2600.1,2599.8,3.0]
[1726972353296,0.38456,2600.0,2599.8,3.0]
[1726972355690,0.38457,2599.9,2599.6,0.7296]
[1726972356002,1.1384,2600.3,2599.2,5.87921181]
[1726972356003,0.38461,2599.7,2599.3,3.38466]
[1726972356200,0.38461,2599.7,2599.4,0.38464]
[1726972356596,0.74801,2599.7,2599.3,3.76035]
[1726972356997,0.3634,2599.7,2599.3,3.3757]
[1726972357305,0.38463,2599.5,2599.3,3.3757]
[1726972357807,0.3634,2599.7,2599.3,3.3757]
[1726972358109,0.38464,2599.4,2599.2,0.3687]
[1726972358300,0.38463,2599.5,2599.2,0.3687]
[1726972359008,3.59243,2599.5,2599.2,0.3687]
[1726972359196,3.59243,2599.5,2599.2,0.75337]
[1726972359400,2.553,2600.0,2599.3,6.8472]
[1726972359704,2.553,2600.0,2599.2,0.3687]
[1726972359705,0.38459,2599.8,2599.5,3.0]
[1726972359998,0.38459,2599.8,2599.6,0.3709]
[1726972360405,3.59239,2599.8,2599.6,0.3709]
[1726972361007,0.38459,2599.8,2599.6,0.3709]
[1726972361304,0.38457,2599.9,2599.6,0.3709]
[1726972361801,4.3915,2600.1,2599.6,0.3709]
[1726972362003,0.38457,2599.9,2599.6,0.3709]
[1726972362302,0.38459,2599.8,2599.6,0.3709]
[1726972362517,3.59235,2600.1,2599.7,3.76848]
[1726972362705,0.38456,2600.0,2599.7,3.3839]
[1726972362909,0.38456,2600.0,2599.7,3.76849]
[1726972363207,3.59235,2600.1,2599.7,3.76849]
[1726972363403,3.59235,2600.1,2599.8,0.38458]
[1726972364797,0.3715,2600.0,2599.8,0.38458]
[1726972365396,0.3715,2600.0,2599.7,3.3839]
[1726972366505,0.3715,2600.0,2599.8,0.38458]
[1726972366907,3.2078,2600.1,2599.7,3.3839]
[1726972367108,3.59234,2600.1,2599.8,0.38457]
[1726972367700,0.38456,2600.0,2599.7,3.76849]
[1726972367907,0.38456,2600.0,2599.7,0.76849]
[1726972368404,3.59234,2600.1,2599.8,0.38458]
[1726972368609,3.59234,2600.1,2599.7,0.76849]
[1726972369224,0.38456,2600.0,2599.7,0.76849]
[1726972369403,3.59235,2600.1,2599.7,0.76849]
[1726972369807,0.3978,2600.0,2599.7,0.76849]
[1726972370310,0.3978,2600.0,2599.7,0.3839]
[1726972370502,0.7813,2600.0,2599.7,0.3839]
[1726972370698,0.77717,2599.9,2599.6,0.75551]
[1726972370906,0.3926,2599.9,2599.6,0.3709]
[1726972371107,0.3846,2599.7,2599.6,0.3709]
[1726972371301,3.2078,2599.8,2599.6,0.3709]
[1726972371302,3.59239,2599.8,2599.6,0.3709]
[1726972372531,3.2078,2599.8,2599.6,0.3709]
[1726972372899,3.59239,2599.8,2599.4,0.38464]
[1726972373305,3.59239,2599.8,2599.3,4.14285]
[1726972373811,0.38461,2599.7,2599.3,0.7582]
[1726972374316,0.4008,2599.6,2599.3,1.14286]
[1726972374507,0.4008,2599.6,2599.3,0.7582]
[1726972374704,0.4008,2599.6,2599.3,0.3817]
[1726972374912,3.5841,2599.5,2599.1,0.3734]
[1726972375106,0.78485,2599.4,2599.1,0.3734]
[1726972378416,0.4002,2599.4,2599.1,0.3734]
[1726972380523,0.4002,2599.4,2599.1,3.75808]
[1726972382020,3.5841,2599.5,2599.4,0.38464]
[1726972382223,0.38459,2599.8,2599.3,3.0]
[1726972382224,3.573,2599.8,2599.3,3.0]
[1726972382618,3.573,2599.8,2599.5,0.38463]
[1726972383011,3.95758,2599.8,2599.4,0.75803]
[1726972389626,3.573,2599.8,2599.5,0.38462]
[1726972389920,3.95758,2599.8,2599.4,0.75803]
[1726972390125,3.95758,2599.8,2599.4,1.76444181]
[1726972393426,3.95758,2599.8,2599.5,1.00641181]
[1726972393931,3.95758,2599.8,2599.4,1.76444181]
[1726972394328,0.74978,2599.8,2599.5,1.00641181]
[1726972398435,0.3846,2599.7,2599.5,1.00641181]
[1726972398730,0.3846,2599.7,2599.4,1.39105181]
[1726972398931,0.3639,2599.6,2599.4,1.39105181]
[1726972399138,0.38,2599.5,2599.4,1.00641181]
[1726972399330,0.76463,2599.5,2599.4,1.00641181]
[1726972399523,0.76463,2599.5,2599.2,1.00641181]
[1726972399524,0.38,2599.5,2599.2,1.00641181]
[1726972399726,3.5797,2599.4,2599.2,1.00641181]
[1726972400136,3.96434,2599.4,2599.2,1.00641181]
[1726972400331,3.5797,2599.4,2599.2,1.00641181]
[1726972402632,0.38466,2599.3,2599.2,1.00641181]
[1726972403139,3.96435,2599.4,2599.2,1.00641181]
[1726972403636,3.5797,2599.4,2599.2,1.00641181]
[1726972403838,3.96435,2599.4,2599.2,1.00641181]
[1726972404235,0.38466,2599.3,2599.2,1.00641181]
[1726972404741,0.38467,2599.2,2599.1,1.00641181]
[1726972405033,0.3847,2599.0,2598.9,1.00641181]
[1726972405242,0.38472,2598.9,2598.7,1.00641181]
[1726972405536,0.75102,2598.9,2598.6,1.00641181]
[1726972405736,0.377,2598.8,2598.6,1.00641181]
[1726972405937,0.76173,2598.8,2598.6,1.00641181]
[1726972406142,0.38475,2598.7,2598.6,1.00641181]
[1726972406332,0.377,2598.8,2598.6,1.00641181]
[1726972406333,0.76174,2598.8,2598.6,1.00641181]
[1726972407145,0.38476,2598.6,2598.3,1.00641181]
[1726972407338,0.3718,2598.5,2598.3,1.00641181]
[1726972407534,0.3718,2598.5,2598.2,1.51037269]
[1726972407535,0.3917,2598.4,2598.2,1.39122181]
[1726972407842,0.7684,2598.4,2598.2,1.39122181]
[1726972408551,0.7684,2598.4,2598.1,2.16754181]
[1726972408734,0.7684,2598.4,2598.1,1.78271181]
[1726972408932,0.7684,2598.4,2598.1,2.16754181]
[1726972410253,0.7684,2598.4,2598.1,1.16113]
[1726972410441,1.1532,2598.4,2598.1,0.7763]
[1726972410646,1.1532,2598.4,2598.1,0.3863]
[1726972410844,4.361,2598.4,2598.1,0.3863]
[1726972411149,4.361,2598.4,2598.0,0.38484]
[1726972411453,4.36099,2598.4,2597.9,1.74021181]
[1726972412545,4.36099,2598.4,2598.0,0.38484]
[1726972413144,3.9762,2598.4,2598.0,1.00641181]
[1726972413351,3.9762,2598.4,2598.1,3.3645]
[1726972413550,3.9762,2598.4,2598.2,0.38481]
[1726972414053,3.9762,2598.4,2598.1,3.74933]
[1726972414654,6.9762,2598.4,2597.9,1.00641181]
[1726972414951,7.36099,2598.4,2598.0,0.38484]
[1726972417346,7.361,2598.4,2598.0,0.38485]
[1726972418852,0.38481,2598.3,2598.0,0.38485]
[1726972419350,3.5845,2598.4,2597.8,3.3991]
[1726972419550,3.2078,2598.4,2598.3,0.3848]
[1726972420951,0.3741,2598.6,2598.2,0.4]
[1726972421155,3.2078,2598.8,2598.2,0.4]
[1726972421351,3.2078,2598.8,2598.5,0.38477]
[1726972422859,6.2078,2598.8,2598.2,0.4]
[1726972423049,0.38475,2598.7,2598.3,0.3848]
[1726972423857,6.2078,2598.8,2598.2,0.4]
[1726972424051,0.38476,2598.7,2598.3,0.3848]
[1726972424647,6.59254,2598.8,2598.4,0.38479]
[1726972424856,3.59254,2598.8,2598.4,0.38479]
[1726972425047,3.59254,2598.8,2598.5,0.3987]
[1726972425360,6.2078,2598.8,2598.2,0.4]
[1726972425549,6.2078,2598.8,2598.3,0.3848]
[1726972425750,0.38476,2598.7,2598.3,0.3848]
[1726972426360,6.2078,2598.8,2598.2,0.78481]
[1726972426361,0.38476,2598.6,2598.2,0.78481]
[1726972426758,0.3932,2598.5,2598.2,0.78481]
[1726972427348,0.3932,2598.5,2598.3,0.3848]
[1726972427658,0.3932,2598.5,2598.2,0.78481]
[1726972428054,0.3932,2598.5,2598.2,0.4]
[1726972428360,0.3932,2598.5,2598.2,0.78481]
[1726972429557,1.15128,2598.5,2598.2,0.78481]
[1726972430367,0.3848,2598.4,2598.0,0.78354]
[1726972430658,0.38481,2598.3,2598.0,0.38484]
[1726972430849,3.59263,2598.2,2597.9,0.4008]
[1726972431050,0.3838,2598.1,2597.9,0.78566]
[1726972431259,1.13544,2598.1,2597.9,0.4008]
[1726972431461,0.7506,2598.1,2597.9,0.4008]
[1726972431764,0.7506,2598.1,2597.9,0.78566]
[1726972431969,0.7506,2598.1,2597.9,0.4008]
[1726972432798,1.13543,2598.1,2597.9,0.4008]
[1726972432957,0.7506,2598.1,2597.9,0.4008]
[1726972433455,0.393,2598.0,2597.9,0.4008]
[1726972433651,0.7506,2598.1,2597.9,0.4008]
[1726972434067,1.13544,2598.1,2597.9,0.4008]
[1726972434259,0.7506,2598.1,2597.9,0.4008]
[1726972434571,0.38489,2597.8,2597.2,0.38496]
[1726972434860,3.9844,2597.7,2597.4,0.3975]
[1726972435266,0.3789,2597.6,2597.4,0.3975]
[1726972435456,0.76381,2597.6,2597.4,0.3975]
[1726972436155,0.38492,2597.5,2597.4,0.3975]
[1726972436353,0.38492,2597.5,2596.6,1.39146181]
[1726972436354,0.38498,2597.2,2596.6,1.39146181]
[1726972436559,0.3847,2597.1,2596.9,0.3751]
[1726972441569,4.123,2597.7,2597.0,6.8504]
[1726972441754,3.2078,2597.8,2597.3,3.38494]
[1726972441755,3.5973,2597.8,2597.3,3.38494]
[1726972441959,0.3895,2597.8,2597.4,0.7522]
[1726972442159,0.38479,2598.4,2597.9,0.38486]
[1726972442364,0.7576,2598.3,2597.8,0.38487]
[1726972442558,0.7576,2598.3,2597.9,0.75716]
[1726972442758,0.7576,2598.3,2597.9,0.3723]
[1726972443172,1.14241,2598.3,2597.9,0.3723]
[1726972443368,0.7576,2598.3,2597.9,0.75716]
[1726972443662,0.7576,2598.3,2597.9,0.3723]
[1726972444270,1.14241,2598.3,2597.9,0.3723]
[1726972444670,3.2078,2598.2,2597.9,0.3723]
[1726972445259,3.2078,2598.2,2598.1,0.38483]
[1726972445462,3.2078,2598.2,2598.1,4.23363]
[1726972446166,3.2078,2598.2,2598.1,0.38483]
[1726972446569,0.38477,2598.6,2598.0,1.11954]
[1726972446570,0.38478,2598.5,2598.0,1.11954]
[1726972446974,3.2078,2598.3,2598.0,1.11954]
[1726972447365,3.2078,2598.3,2597.9,0.3723]
[1726972447569,1.16663,2598.2,2597.9,0.3723]
[1726972447770,3.59266,2598.0,2597.6,3.5708]
[1726972447964,3.59266,2598.0,2597.6,3.95571]
[1726972448374,3.2078,2598.0,2597.6,0.363]
[1726972448677,0.38487,2597.9,2597.6,0.363]
[1726972450263,3.2078,2598.0,2597.6,0.363]
[1726972450474,3.2078,2598.0,2597.7,0.38489]
[1726972450874,3.2078,2598.0,2597.6,0.7479]
[1726972451183,3.59266,2598.0,2597.6,0.363]
[1726972451968,3.2078,2598.0,2597.6,0.363]
[1726972452274,1.1728,2598.2,2597.6,0.363]
[1726972452471,1.1728,2598.2,2597.8,0.38487]
[1726972452874,3.2078,2598.1,2597.8,0.38487]
[1726972453074,1.1728,2598.2,2597.8,0.38487]
[1726972453277,3.2078,2598.1,2597.6,0.363]
[1726972453476,3.2078,2598.4,2598.1,0.38483]
[1726972453677,3.2078,2598.4,2598.2,0.7708]
[1726972455286,3.59259,2598.4,2598.0,0.38484]
[1726972455473,3.2078,2598.4,2598.0,0.38484]
[1726972456772,3.2078,2598.4,2597.9,0.3756]
[1726972456993,3.2078,2598.4,2598.1,0.38483]
[1726972457882,3.2078,2598.4,2598.0,0.38484]
[1726972458972,3.5926,2598.4,2597.9,0.76045]
[1726972459172,0.38481,2598.3,2597.9,0.3756]
[1726972459379,3.2078,2598.1,2597.9,0.3756]
[1726972459583,3.5926,2598.4,2597.9,0.3756]
[1726972459778,3.5926,2598.4,2597.9,0.76045]
[1726972460773,0.3848,2598.3,2597.9,0.76045]
[1726972461078,3.0,2598.3,2597.9,0.3756]
[1726972461376,0.3683,2598.2,2597.9,0.3756]
[1726972462080,0.75313,2598.2,2597.9,0.3756]
[1726972463680,3.2078,2598.4,2598.0,0.38484]
[1726972463881,3.59259,2598.4,2598.0,0.38484]
[1726972466489,3.2078,2598.4,2598.1,0.38483]
[1726972466686,3.2078,2598.4,2597.9,0.3756]
[1726972466985,3.2078,2598.4,2597.9,0.7581]
[1726972467191,3.2078,2598.4,2598.3,0.3848]
[1726972468386,0.3683,2598.5,2598.3,0.3848]
[1726972468586,3.5925,2598.7,2598.4,4.60889]
[1726972468787,0.4014,2598.6,2598.4,0.3753]
[1726972469587,0.4014,2598.6,2598.4,0.76009]
[1726972469784,0.4014,2598.6,2598.5,0.38477]
[1726972470187,4.123,2599.2,2598.8,0.38472]
[1726972470385,5.702058,2599.4,2598.8,0.38472]
[1726972470386,0.4009,2599.1,2598.9,0.3753]
[1726972471391,0.4009,2599.1,2598.9,0.76001]
[1726972471686,0.4009,2599.1,2598.9,0.3753]
[1726972471895,0.4009,2599.1,2599.0,0.3847]
[1726972472186,0.4009,2599.1,2598.9,0.3753]
[1726972472187,0.4009,2599.1,2598.9,0.76001]
[1726972473792,3.6087,2599.1,2598.9,0.3753]
[1726972474291,3.6087,2599.1,2598.9,0.76001]
[1726972475388,3.6087,2599.1,2598.8,0.38472]
[1726972475791,3.6087,2599.1,2598.8,0.38473]
[1726972476594,3.6087,2599.1,2598.7,0.3807]
[1726972476986,3.6087,2599.1,2598.8,0.38473]
[1726972477898,3.6087,2599.1,2598.8,0.38472]
[1726972478389,3.6087,2599.1,2598.8,0.38473]
[1726972481485,0.4009,2599.1,2598.8,0.38473]
[1726972481797,3.6087,2599.1,2598.8,0.38473]
[1726972481982,3.6087,2599.1,2598.9,0.38471]
[1726972482296,3.6087,2599.1,2598.8,0.38472]
[1726972482495,3.6087,2599.1,2599.0,0.3847]
[1726972484608,0.4009,2599.1,2599.0,0.3847]
[1726972493906,4.123,2599.7,2599.0,13.35095]
[1726972494106,0.3955,2599.6,2599.5,0.38463]
[1726972494410,3.2078,2600.1,2599.5,3.3806]
[1726972494607,0.38449,2600.5,2600.1,0.38454]
[1726972494608,0.3913,2600.2,2600.1,0.38454]
[1726972494808,0.3913,2600.2,2599.9,3.2078]
[1726972495004,0.3913,2600.2,2600.0,0.76514]
[1726972495307,0.3913,2600.2,2600.0,0.3806]
[1726972495500,0.38454,2600.1,2599.7,0.3846]
[1726972495907,3.98363,2600.2,2599.7,0.3846]
[1726972496103,0.38454,2600.1,2599.7,0.3846]
[1726972496302,3.98363,2600.2,2599.7,0.3846]
[1726972496710,0.38454,2600.1,2599.7,0.3846]
[1726972497223,3.98363,2600.2,2599.7,0.3846]
[1726972497719,0.38454,2600.1,2599.7,0.3846]
[1726972497926,0.38454,2600.1,2599.6,0.38461]
[1726972498217,3.2078,2599.9,2599.5,0.38462]
[1726972498414,0.7679,2599.8,2599.4,2.9226]
[1726972498614,1.1705,2599.8,2599.4,0.3806]
[1726972498818,1.1705,2599.8,2599.5,0.38462]
[1726972500319,1.1705,2599.8,2599.2,3.2078]
[1726972500514,3.2078,2599.6,2599.2,3.2078]
[1726972500826,0.38463,2599.5,2599.1,0.38467]
[1726972501023,0.38464,2599.5,2599.0,4.87699]
[1726972501517,3.0,2599.5,2598.8,5.7488]
[1726972501712,3.2078,2599.3,2598.9,0.38472]
[1726972501916,1.13027,2599.2,2598.8,3.59252]
[1726972502112,1.50347,2599.2,2598.8,0.38472]
[1726972502322,1.1188,2599.2,2598.9,0.38471]
[1726972503311,1.50348,2599.2,2598.7,0.3903]
[1726972503728,1.1188,2599.2,2598.9,0.38471]
[1726972504724,1.1188,2599.2,2598.8,0.38472]
[1726972504927,1.1188,2599.2,2598.7,0.3903]
[1726972505134,1.50348,2599.2,2598.7,0.3903]
[1726972505431,1.1188,2599.2,2598.8,0.38473]
[1726972506129,3.2078,2599.0,2598.2,1.00641181]
[1726972506428,0.38472,2598.9,2598.3,0.3668]
[1726972506624,3.2078,2598.7,2598.4,0.38478]
[1726972506822,0.7599,2598.6,2598.3,0.7516]
[1726972507022,0.7599,2598.6,2598.4,0.38479]
[1726972507431,0.7599,2598.6,2598.2,3.2078]
[1726972507725,0.7599,2598.6,2598.2,3.59261]
[1726972509023,1.14466,2598.6,2598.2,3.59261]
[1726972509720,1.14466,2598.6,2598.2,3.2078]
[1726972510120,3.2078,2598.4,2598.1,0.3668]
[1726972510328,3.2078,2598.4,2597.9,0.38486]
[1726972510528,0.74791,2598.3,2597.8,1.38471181]
[1726972510727,0.74791,2598.3,2597.8,0.3783]
[1726972511125,0.38482,2598.2,2597.8,0.76317]
[1726972511330,0.3631,2598.3,2597.9,0.38486]
[1726972511331,0.7744,2598.1,2597.9,0.38486]
[1726972511635,0.7744,2598.1,2597.9,0.38485]
[1726972513235,0.3808,2598.1,2597.9,0.38485]
[1726972513440,0.3808,2598.1,2597.8,1.76958181]
[1726972513638,0.3808,2598.1,2597.9,0.38486]
[1726972517441,0.3808,2598.1,2597.8,0.3783]
[1726972517643,0.3808,2598.1,2597.9,0.38486]
[1726972523348,0.3808,2598.1,2597.8,0.3783]
[1726972523937,0.3808,2598.1,2597.9,0.38486]
[1726972525245,0.3808,2598.1,2597.8,0.76317]
[1726972525649,0.3808,2598.1,2597.8,0.3783]
[1726972526251,0.3808,2598.1,2597.8,0.76317]
[1726972526957,0.3808,2598.1,2597.8,0.3783]
[1726972527154,0.3808,2598.1,2597.9,0.38486]
[1726972527350,0.3808,2598.1,2597.8,0.3783]
[1726972527654,3.2078,2598.7,2598.3,0.3848]
[1726972527858,3.9472,2598.7,2598.4,0.3637]
[1726972528349,7.7952,2598.7,2598.0,0.3894]
[1726972528545,3.2078,2598.4,2598.0,0.7531]
[1726972528747,3.0,2598.2,2598.0,0.3637]
[1726972528949,0.3717,2598.1,2598.0,0.3637]
[1726972529356,0.3717,2598.1,2597.8,0.38487]
[1726972529859,0.3717,2598.1,2597.7,0.3983]
[1726972530055,3.5795,2598.1,2597.7,0.3983]
[1726972530255,0.38486,2598.0,2597.7,0.3983]
[1726972530446,0.38486,2598.0,2597.4,3.2078]
[1726972530447,3.2078,2597.8,2597.4,0.38493]
[1726972530651,0.394,2597.7,2597.4,0.38493]
[1726972530969,0.3921,2597.6,2597.3,0.78325]
[1726972531257,0.3921,2597.6,2597.4,0.38493]
[1726972531759,3.2078,2597.8,2597.4,0.38493]
[1726972532059,3.5999,2597.8,2597.4,0.38493]
[1726972532449,0.3677,2597.9,2597.4,3.0]
[1726972532745,0.3677,2597.9,2597.7,0.38489]
[1726972532950,0.3677,2597.9,2597.8,0.75108]
[1726972533150,0.3677,2597.9,2597.8,0.3662]
[1726972533350,0.3677,2597.9,2597.8,0.75108]
[1726972533551,0.3677,2597.9,2597.8,0.3662]
[1726972534346,0.3677,2597.9,2597.8,0.75108]
[1726972534556,0.3921,2598.1,2597.8,0.3662]
[1726972534756,3.2078,2598.2,2598.0,0.38484]
[1726972534956,0.7487,2598.4,2598.0,0.38484]
[1726972535674,0.7487,2598.4,2597.9,3.0]
[1726972535858,0.7487,2598.4,2598.1,0.38483]
[1726972536560,0.7487,2598.4,2598.0,1.13674]
[1726972537262,0.7487,2598.4,2598.0,0.76764]
[1726972537756,0.7487,2598.4,2598.0,0.3828]
[1726972537961,0.7487,2598.4,2598.0,0.76765]
[1726972540560,0.7487,2598.4,2598.0,0.3828]
[1726972540957,0.7487,2598.4,2598.1,0.38483]
[1726972541863,0.3646,2598.4,2598.1,3.2078]
[1726972542062,0.3646,2598.4,2598.3,0.3848]
[1726972544658,0.3925,2598.7,2598.3,4.2519]
[1726972544866,0.3986,2598.8,2598.4,0.397]